fUST/lending_fUST_20240110
["ID","MTS","AMOUNT","RATE_DAILY","PERIOD"]
[311074957,1704895840319,-500.0,0.00027945,2]
[311074958,1704895840329,-500.0,0.00027945,2]
[311074959,1704895840338,-500.0,0.00027945,2]
[311074960,1704895840348,-154.29785145,0.00027945,2]
[311074961,1704895840357,-200.0,0.00027945,2]
[311074962,1704895840367,-500.0,0.00027945,2]
[311074963,1704895840376,-500.0,0.00027945,2]
[311074964,1704895840385,-500.0,0.00027945,2]
[311074965,1704895840395,-573.80067345,0.00027945,2]
[311074966,1704895840404,-597.76,0.00027945,2]
[311074967,1704895840414,-500.0,0.00027945,2]
[311074968,1704895840424,-500.0,0.00027945,2]
[311074969,1704895840434,-469.88941298,0.00027945,2]
[311074971,1704895840443,-500.0,0.00027945,2]
[311074973,1704895840453,-500.0,0.00027945,2]
[311074974,1704895840462,-500.0,0.00027945,2]
[311074976,1704895840471,-500.0,0.00027945,2]
[311074977,1704895840484,-500.0,0.00027945,2]
[311074978,1704895840493,-500.0,0.00027945,2]
[311074979,1704895840503,-500.0,0.00027945,2]
[311074980,1704895840512,-500.0,0.00027945,2]
[311074981,1704895840522,-500.0,0.00027945,2]
[311074982,1704895840532,-248.16618608,0.00027945,2]
[311074983,1704895840542,-633.29,0.00027945,2]
[311074985,1704895840553,-9411.07,0.00027945,2]
[311074987,1704895840562,-500.0,0.00027945,2]
[311074988,1704895840572,-500.0,0.00027945,2]
[311074990,1704895840581,-500.0,0.00027945,2]
[311074991,1704895840590,-500.0,0.00027945,2]
[311074992,1704895840599,-1184.78,0.00027945,2]
[311074994,1704895840609,-162.28174723,0.00027945,2]
[311074995,1704895840619,-500.0,0.00027945,2]
[311074996,1704895840628,-529.27051169,0.00027945,2]
[311074998,1704895840637,-500.0,0.00027945,2]
[311074999,1704895840647,-602.54,0.00027945,2]
[311075000,1704895840657,-500.0,0.00027945,2]
[311075001,1704895840666,-500.0,0.00027945,2]
[311075002,1704895840676,-500.0,0.00027945,2]
[311075003,1704895840686,-500.0,0.00027945,2]
[311075004,1704895840694,-500.0,0.00027945,2]
[311075005,1704895840704,-500.0,0.00027945,2]
[311075006,1704895840713,-500.0,0.00027945,2]
[311075007,1704895840722,-500.0,0.00027945,2]
[311075008,1704895840733,-1239.96,0.00027945,2]
[311075009,1704895840743,-5148.99,0.00027945,2]
[311075010,1704895840752,-500.0,0.00027945,2]
[311075011,1704895840762,-500.0,0.00027945,2]
[311075012,1704895840771,-500.0,0.00027945,2]
[311075013,1704895840780,-500.0,0.00027945,2]
[311075014,1704895840790,-500.0,0.00027945,2]
[311075015,1704895840799,-500.0,0.00027945,2]
[311075016,1704895840808,-500.0,0.00027945,2]
[311075017,1704895840817,-500.0,0.00027945,2]
[311075018,1704895840827,-500.0,0.00027945,2]
[311075019,1704895840837,-287.98515762,0.00027945,2]
[311075020,1704895840847,-461.93363699,0.00027945,2]
[311075021,1704895840857,-500.0,0.00027945,2]
[311075022,1704895840866,-500.0,0.00027945,2]
[311075023,1704895840875,-500.0,0.00027945,2]
[311075024,1704895840885,-583.02535419,0.00027945,2]
[311075025,1704895840894,-500.0,0.00027945,2]
[311075026,1704895840904,-500.0,0.00027945,2]
[311075027,1704895840914,-500.0,0.00027945,2]
[311075028,1704895840923,-500.0,0.00027945,2]
[311075029,1704895840932,-500.0,0.00027945,2]
[311075030,1704895840942,-500.0,0.00027945,2]
[311075031,1704895840952,-500.0,0.00027945,2]
[311075032,1704895840961,-781.03,0.00027945,2]
[311075033,1704895840971,-3559.94,0.00027945,2]
[311075034,1704895840981,-500.0,0.00027945,2]
[311075035,1704895840991,-500.0,0.00027945,2]
[311075036,1704895841001,-500.0,0.00027945,2]
[311075037,1704895841010,-1208.23,0.00027945,2]
[311075038,1704895841020,-506.72737826,0.00027945,2]
[311075039,1704895841030,-703.34,0.00027945,2]
[311075040,1704895841040,-500.0,0.00027945,2]
[311075041,1704895841050,-500.0,0.00027945,2]
[311075042,1704895841060,-500.0,0.00027945,2]
[311075043,1704895841069,-500.0,0.00027945,2]
[311075044,1704895841079,-1751.28,0.00027945,2]
[311075045,1704895841089,-3089.70069499,0.00027998,2]
[311075046,1704895841099,-271.84681724,0.00028205,2]
[311075047,1704895841109,-500.0,0.00028205,2]
[311075049,1704895841118,-367.65383172,0.00028206,2]
[311075050,1704895841128,-451.57405458,0.00028207,2]
[311075051,1704895841138,-656.73412102,0.00028208,2]
[311075052,1704895841147,-155.38219287,0.00028208,2]
[311075053,1704895841158,-8487.81000666,0.00028218,2]
[311075054,1704895841167,-500.0,0.00028219,2]
[311075055,1704895841177,-500.0,0.00028219,2]
[311075057,1704895841187,-500.0,0.00028219,2]
[311075058,1704895841197,-500.0,0.00028219,2]
[311075059,1704895841207,-500.0,0.00028219,2]
[311075060,1704895841217,-182.14359521,0.00028219,2]
[311075061,1704895841226,-508.36,0.00028219,2]
[311075062,1704895841240,-500.0,0.00028219,2]
[311075063,1704895841249,-500.0,0.00028219,2]
[311075065,1704895841258,-500.0,0.00028219,2]
[311075066,1704895841268,-500.0,0.00028219,2]
[311075067,1704895841277,-500.0,0.00028219,2]
[311075068,1704895841287,-500.0,0.00028219,2]
[311075069,1704895841296,-500.0,0.00028219,2]
[311075070,1704895841306,-317.83820168,0.00028219,2]
[311075072,1704895841315,-500.0,0.00028219,2]
[311075074,1704895841325,-500.0,0.00028219,2]
[311075075,1704895841335,-500.0,0.00028219,2]
[311075076,1704895841347,-500.0,0.00028219,2]
[311075077,1704895841357,-500.0,0.00028219,2]
[311075078,1704895841367,-500.0,0.00028219,2]
[311075079,1704895841378,-500.0,0.00028219,2]
[311075080,1704895841387,-500.0,0.00028219,2]
[311075081,1704895841397,-500.0,0.00028219,2]
[311075082,1704895841407,-500.0,0.00028219,2]
[311075083,1704895841416,-500.0,0.00028219,2]
[311075084,1704895841426,-500.0,0.00028219,2]
[311075085,1704895841436,-500.0,0.00028219,2]
[311075086,1704895841445,-500.0,0.00028219,2]
[311075087,1704895841455,-500.0,0.00028219,2]
[311075088,1704895841464,-500.0,0.00028219,2]
[311075089,1704895841473,-500.0,0.00028219,2]
[311075090,1704895841485,-500.0,0.00028219,2]
[311075091,1704895841496,-500.0,0.00028219,2]
[311075092,1704895841506,-500.0,0.00028219,2]
[311075093,1704895841516,-500.0,0.00028219,2]
[311075094,1704895841527,-500.0,0.00028219,2]
[311075095,1704895841536,-500.0,0.00028219,2]
[311075096,1704895841546,-500.0,0.00028219,2]
[311075097,1704895841556,-500.0,0.00028219,2]
[311075098,1704895841566,-500.0,0.00028219,2]
[311075099,1704895841576,-500.0,0.00028219,2]
[311075100,1704895841585,-500.0,0.00028219,2]
[311075101,1704895841594,-219.26561474,0.00028219,2]
[311075102,1704895841604,-500.0,0.00028219,2]
[311075103,1704895841614,-500.0,0.00028219,2]
[311075104,1704895841623,-597.76,0.00028219,2]
[311075105,1704895841632,-321.53469162,0.00028219,2]
[311075106,1704895841723,-178.46530838,0.00028219,2]
[311075107,1704895841735,-500.0,0.00028219,2]
[311075108,1704895841745,-500.0,0.00028219,2]
[311075109,1704895841755,-440.4046281,0.00028219,2]
[311075110,1704895841766,-500.0,0.00028219,2]
[311075111,1704895841775,-132.88006352,0.00028219,2]
[311075113,1704895841968,-154.87609912,0.00021639,4]
[311075114,1704895841978,-1081.37461095,0.00027397,2]
[311075115,1704895841989,-501.14820522,0.00027397,2]
[311075116,1704895841999,-500.0,0.00027397,2]
[311075117,1704895842008,-2195.23986473,0.00027398,3]
[311075118,1704895842018,-500.0,0.00027671,2]
[311075119,1704895842028,-500.0,0.00027945,2]
[311075120,1704895842039,-367.11993648,0.00028219,2]
[311075121,1704895842048,-500.0,0.00028219,2]
[311075122,1704895842058,-633.29,0.00028219,2]
[311075123,1704895842067,-9411.07,0.00028219,2]
[311075124,1704895842077,-500.0,0.00028219,2]
[311075125,1704895842087,-500.0,0.00028219,2]
[311075126,1704895842096,-500.0,0.00028219,2]
[311075127,1704895842106,-1184.78,0.00028219,2]
[311075128,1704895842116,-500.0,0.00028219,2]
[311075129,1704895842126,-500.0,0.00028219,2]
[311075130,1704895842136,-602.54,0.00028219,2]
[311075131,1704895842146,-507.5546075,0.00028219,2]
[311075132,1704895842156,-500.0,0.00028219,2]
[311075133,1704895842165,-500.0,0.00028219,2]
[311075134,1704895842175,-500.0,0.00028219,2]
[311075135,1704895842184,-500.0,0.00028219,2]
[311075136,1704895842194,-334.96709269,0.00028219,2]
[311075137,1704895842203,-500.0,0.00028219,2]
[311075138,1704895842213,-549.71027155,0.00028219,2]
[311075139,1704895842223,-1239.96,0.00028219,2]
[311075140,1704895842236,-5148.99,0.00028219,2]
[311075141,1704895842248,-500.0,0.00028219,2]
[311075142,1704895842258,-500.0,0.00028219,2]
[311075143,1704895842269,-500.0,0.00028219,2]
[311075144,1704895842279,-500.0,0.00028219,2]
[311075145,1704895842289,-500.0,0.00028219,2]
[311075146,1704895842299,-500.0,0.00028219,2]
[311075147,1704895842309,-500.0,0.00028219,2]
[311075148,1704895842320,-500.0,0.00028219,2]
[311075149,1704895842435,-500.0,0.00028219,2]
[311075150,1704895842445,-500.0,0.00028219,2]
[311075151,1704895842454,-500.0,0.00028219,2]
[311075152,1704895842464,-500.0,0.00028219,2]
[311075153,1704895842474,-500.0,0.00028219,2]
[311075154,1704895842486,-500.0,0.00028219,2]
[311075155,1704895842495,-500.0,0.00028219,2]
[311075156,1704895842505,-500.0,0.00028219,2]
[311075157,1704895842514,-781.03,0.00028219,2]
[311075158,1704895842524,-3559.94,0.00028219,2]
[311075159,1704895842534,-500.0,0.00028219,2]
[311075160,1704895842543,-500.0,0.00028219,2]
[311075161,1704895842553,-500.0,0.00028219,2]
[311075162,1704895842562,-1208.23,0.00028219,2]
[311075163,1704895842571,-703.34,0.00028219,2]
[311075164,1704895842581,-500.0,0.00028219,2]
[311075165,1704895842590,-500.0,0.00028219,2]
[311075166,1704895842600,-1751.28,0.00028219,2]
[311075167,1704895842609,-500.0,0.00028492,4]
[311075168,1704895842618,-500.0,0.00028492,4]
[311075169,1704895842627,-479.82854021,0.00028492,4]
[311075170,1704895842636,-180.95909204,0.00028492,4]
[311075171,1704895842646,-385.13502982,0.00028492,4]
[311075172,1704895842655,-500.0,0.00028493,2]
[311075173,1704895842664,-177.14197756,0.00028493,2]
[311075174,1704895842674,-500.0,0.00028493,2]
[311075175,1704895842683,-351.590084,0.00028493,2]
[311075176,1704895842692,-500.0,0.00028493,2]
[311075177,1704895842702,-500.0,0.00028493,2]
[311075178,1704895842711,-500.0,0.00028493,2]
[311075179,1704895842721,-500.0,0.00028493,2]
[311075180,1704895842730,-500.0,0.00028493,2]
[311075181,1704895842740,-500.0,0.00028493,2]
[311075182,1704895842749,-500.0,0.00028493,2]
[311075183,1704895842758,-500.0,0.00028493,2]
[311075184,1704895842768,-500.0,0.00028493,2]
[311075185,1704895842777,-500.0,0.00028493,2]
[311075186,1704895842786,-500.0,0.00028493,2]
[311075187,1704895842795,-500.0,0.00028493,2]
[311075188,1704895842805,-500.0,0.00028493,2]
[311075189,1704895842814,-500.0,0.00028493,2]
[311075190,1704895842823,-500.20689243,0.00028493,2]
[311075191,1704895842833,-500.0,0.00028493,2]
[311075192,1704895842842,-500.0,0.00028493,2]
[311075193,1704895842850,-398.56874292,0.00028493,2]
[311075194,1704895842859,-500.0,0.00028493,2]
[311075195,1704895842869,-500.0,0.00028493,2]
[311075196,1704895842878,-500.0,0.00028493,2]
[311075198,1704895842888,-500.0,0.00028493,2]
[311075199,1704895842897,-500.0,0.00028493,2]
[311075200,1704895842906,-500.0,0.00028493,2]
[311075202,1704895842915,-500.0,0.00028493,2]
[311075203,1704895842924,-519.72465635,0.00028493,2]
[311075204,1704895842934,-500.0,0.00028493,2]
[311075205,1704895842942,-500.0,0.00028493,2]
[311075206,1704895842951,-500.0,0.00028493,2]
[311075207,1704895842960,-500.0,0.00028493,2]
[311075208,1704895842970,-500.0,0.00028493,2]
[311075210,1704895842979,-500.0,0.00028493,2]
[311075211,1704895842989,-500.0,0.00028493,2]
[311075212,1704895842998,-500.0,0.00028493,2]
[311075213,1704895843007,-597.76,0.00028493,2]
[311075214,1704895843016,-500.0,0.00028493,2]
[311075215,1704895843026,-500.0,0.00028493,2]
[311075216,1704895843035,-500.0,0.00028493,2]
[311075217,1704895843044,-12.07228334,0.00028493,2]
[311075218,1704895843057,-621.21771666,0.00028493,2]
[311075219,1704895843066,-9411.07,0.00028493,2]
[311075220,1704895843076,-500.0,0.00028493,2]
[311075221,1704895843085,-500.0,0.00028493,2]
[311075222,1704895843094,-500.0,0.00028493,2]
[311075223,1704895843103,-1184.78,0.00028493,2]
[311075224,1704895843113,-500.0,0.00028493,2]
[311075225,1704895843122,-500.0,0.00028493,2]
[311075226,1704895843131,-602.54,0.00028493,2]
[311075227,1704895843140,-222.94134077,0.00028493,2]
[311075228,1704895843150,-500.0,0.00028493,2]
[311075229,1704895843159,-500.0,0.00028493,2]
[311075230,1704895843168,-500.0,0.00028493,2]
[311075231,1704895843178,-500.0,0.00028493,2]
[311075232,1704895843187,-1239.96,0.00028493,2]
[311075233,1704895843196,-5148.99,0.00028493,2]
[311075234,1704895843205,-500.0,0.00028493,2]
[311075235,1704895843215,-169.70892962,0.00028493,2]
[311075236,1704895843224,-500.0,0.00028493,2]
[311075237,1704895843235,-500.0,0.00028493,2]
[311075238,1704895843244,-500.0,0.00028493,2]
[311075239,1704895843254,-500.0,0.00028493,2]
[311075240,1704895843264,-500.0,0.00028493,2]
[311075241,1704895843274,-500.0,0.00028493,2]
[311075242,1704895843284,-500.0,0.00028493,2]
[311075243,1704895843294,-500.0,0.00028493,2]
[311075244,1704895843303,-500.0,0.00028493,2]
[311075245,1704895843313,-500.0,0.00028493,2]
[311075246,1704895843323,-500.0,0.00028493,2]
[311075247,1704895843333,-500.0,0.00028493,2]
[311075248,1704895843345,-500.0,0.00028493,2]
[311075249,1704895843354,-781.03,0.00028493,2]
[311075250,1704895843364,-3559.94,0.00028493,2]
[311075251,1704895843374,-500.0,0.00028493,2]
[311075252,1704895843385,-1208.23,0.00028493,2]
[311075253,1704895843395,-703.34,0.00028493,2]
[311075254,1704895843405,-500.0,0.00028493,2]
[311075255,1704895843414,-1751.28,0.00028493,2]
[311075256,1704895843424,-9098.22062588,0.000285,4]
[311075257,1704895843434,-500.0,0.00028767,2]
[311075258,1704895843443,-634.3735217,0.00028767,2]
[311075259,1704895843453,-500.0,0.00028767,2]
[311075260,1704895843462,-581.94597339,0.00028767,2]
[311075261,1704895843471,-500.0,0.00028767,2]
[311075262,1704895843482,-500.0,0.00028767,2]
[311075263,1704895843491,-500.0,0.00028767,2]
[311075264,1704895843501,-500.0,0.00028767,2]
[311075265,1704895843511,-500.0,0.00028767,2]
[311075266,1704895843520,-500.0,0.00028767,2]
[311075267,1704895843529,-308.861743,0.00028767,2]
[311075268,1704895843539,-500.0,0.00028767,2]
[311075269,1704895843548,-346.77438312,0.00028767,2]
[311075270,1704895843557,-500.0,0.00028767,2]
[311075271,1704895843567,-500.0,0.00028767,2]
[311075272,1704895843576,-500.0,0.00028767,2]
[311075273,1704895843585,-500.0,0.00028767,2]
[311075274,1704895843594,-500.0,0.00028767,2]
[311075276,1704895843603,-500.0,0.00028767,2]
[311075277,1704895843613,-500.0,0.00028767,2]
[311075278,1704895843622,-500.0,0.00028767,2]
[311075279,1704895843631,-500.0,0.00028767,2]
[311075280,1704895843640,-500.0,0.00028767,2]
[311075281,1704895843649,-500.0,0.00028767,2]
[311075282,1704895843658,-500.0,0.00028767,2]
[311075283,1704895843668,-500.0,0.00028767,2]
[311075284,1704895843677,-597.76,0.00028767,2]
[311075285,1704895843686,-500.0,0.00028767,2]
[311075286,1704895843695,-500.0,0.00028767,2]
[311075287,1704895843705,-633.29,0.00028767,2]
[311075289,1704895843715,-9411.07,0.00028767,2]
[311075290,1704895843725,-565.54,0.00028767,2]
[311075291,1704895843736,-500.0,0.00028767,2]
[311075292,1704895843745,-500.0,0.00028767,2]
[311075293,1704895843754,-1184.78,0.00028767,2]
[311075294,1704895843763,-500.0,0.00028767,2]
[311075295,1704895843772,-602.54,0.00028767,2]
[311075296,1704895843781,-500.0,0.00028767,2]
[311075297,1704895843791,-500.0,0.00028767,2]
[311075298,1704895843800,-500.0,0.00028767,2]
[311075299,1704895843809,-500.0,0.00028767,2]
[311075300,1704895843819,-1239.96,0.00028767,2]
[311075301,1704895843828,-5148.99,0.00028767,2]
[311075302,1704895843837,-564.67628536,0.00028767,2]
[311075303,1704895843847,-500.0,0.00028767,2]
[311075305,1704895843856,-500.0,0.00028767,2]
[311075307,1704895843865,-500.0,0.00028767,2]
[311075309,1704895843874,-500.0,0.00028767,2]
[311075311,1704895843883,-500.0,0.00028767,2]
[311075312,1704895843892,-500.0,0.00028767,2]
[311075313,1704895843901,-500.0,0.00028767,2]
[311075314,1704895843910,-500.0,0.00028767,2]
[311075315,1704895843919,-500.0,0.00028767,2]
[311075316,1704895843928,-500.0,0.00028767,2]
[311075317,1704895843937,-155.0,0.00028767,2]
[311075318,1704895843946,-500.0,0.00028767,2]
[311075319,1704895843955,-781.03,0.00028767,2]
[311075320,1704895843964,-3559.94,0.00028767,2]
[311075321,1704895843973,-500.0,0.00028767,2]
[311075322,1704895843985,-1208.23,0.00028767,2]
[311075323,1704895843994,-703.34,0.00028767,2]
[311075324,1704895844003,-500.0,0.00028767,2]
[311075325,1704895844012,-1751.28,0.00028767,2]
[311075327,1704895844023,-2828.00185703,0.00028787,2]
[311075329,1704895844032,-439.02,0.00029,2]
[311075331,1704895844041,-163.65932921,0.00029,2]
[311075332,1704895844050,-5499.99999701,0.00029,2]
[311075333,1704895844059,-255.07031327,0.00029041,2]
[311075334,1704895844067,-500.0,0.00029041,2]
[311075335,1704895844077,-500.0,0.00029041,2]
[311075336,1704895844086,-500.0,0.00029041,2]
[311075337,1704895844096,-500.0,0.00029041,2]
[311075338,1704895844105,-500.0,0.00029041,2]
[311075339,1704895844114,-500.0,0.00029041,2]
[311075340,1704895844123,-500.0,0.00029041,2]
[311075341,1704895844132,-500.0,0.00029041,2]
[311075342,1704895844142,-500.0,0.00029041,2]
[311075343,1704895844151,-521.45,0.00029041,2]
[311075344,1704895844161,-509.35,0.00029041,2]
[311075345,1704895844170,-295.98,0.00029041,2]
[311075346,1704895844179,-210.8,0.00029041,2]
[311075347,1704895844189,-500.0,0.00029041,2]
[311075348,1704895844198,-500.0,0.00029041,2]
[311075349,1704895844207,-500.0,0.00029041,2]
[311075350,1704895844216,-597.76,0.00029041,2]
[311075351,1704895844226,-528.22,0.00029041,2]
[311075352,1704895844237,-500.0,0.00029041,2]
[311075353,1704895844246,-633.29,0.00029041,2]
[311075354,1704895844255,-9411.07,0.00029041,2]
[311075355,1704895844264,-500.0,0.00029041,2]
[311075356,1704895844273,-500.0,0.00029041,2]
[311075357,1704895844283,-1184.78,0.00029041,2]
[311075358,1704895844293,-500.0,0.00029041,2]
[311075359,1704895844302,-602.54,0.00029041,2]
[311075360,1704895844312,-500.0,0.00029041,2]
[311075361,1704895844322,-500.0,0.00029041,2]
[311075362,1704895844331,-500.0,0.00029041,2]
[311075363,1704895844341,-500.0,0.00029041,2]
[311075364,1704895844350,-1239.96,0.00029041,2]
[311075365,1704895844359,-5148.99,0.00029041,2]
[311075366,1704895844369,-500.0,0.00029041,2]
[311075367,1704895844378,-481.45873839,0.00029041,2]
[311075368,1704895844389,-570.79,0.00029041,2]
[311075369,1704895844398,-500.0,0.00029041,2]
[311075370,1704895844408,-406.08640608,0.00029041,2]
[311075371,1704895844417,-500.0,0.00029041,2]
[311075372,1704895844427,-500.0,0.00029041,2]
[311075373,1704895844437,-500.0,0.00029041,2]
[311075374,1704895844447,-500.0,0.00029041,2]
[311075375,1704895844457,-500.0,0.00029041,2]
[311075376,1704895844466,-781.03,0.00029041,2]
[311075377,1704895844475,-3559.94,0.00029041,2]
[311075378,1704895844487,-500.0,0.00029041,2]
[311075379,1704895844496,-1208.23,0.00029041,2]
[311075380,1704895844506,-703.34,0.00029041,2]
[311075381,1704895844515,-1751.28,0.00029041,2]
[311075382,1704895844525,-8743.9820779,0.000291,2]
[311075383,1704895844535,-300.0,0.000293,14]
[311075384,1704895844544,-500.0,0.00029315,2]
[311075385,1704895844554,-500.0,0.00029315,2]
[311075386,1704895844563,-500.0,0.00029315,2]
[311075387,1704895844573,-350.62,0.00029315,2]
[311075388,1704895844583,-500.0,0.00029315,2]
[311075389,1704895844592,-500.0,0.00029315,2]
[311075390,1704895844601,-171.62,0.00029315,2]
[311075391,1704895844610,-598.68,0.00029315,2]
[311075392,1704895844620,-500.0,0.00029315,2]
[311075393,1704895844629,-543.2496484,0.00029315,2]
[311075394,1704895844638,-500.0,0.00029315,2]
[311075395,1704895844647,-597.76,0.00029315,2]
[311075396,1704895844656,-500.0,0.00029315,2]
[311075397,1704895844665,-633.29,0.00029315,2]
[311075398,1704895844675,-9411.07,0.00029315,2]
[311075399,1704895844684,-500.0,0.00029315,2]
[311075400,1704895844693,-500.0,0.00029315,2]
[311075401,1704895844703,-1184.78,0.00029315,2]
[311075402,1704895844712,-500.0,0.00029315,2]
[311075403,1704895844721,-602.54,0.00029315,2]
[311075404,1704895844731,-615.16,0.00029315,2]
[311075405,1704895844741,-500.0,0.00029315,2]
[311075406,1704895844749,-500.0,0.00029315,2]
[311075407,1704895844758,-500.0,0.00029315,2]
[311075408,1704895844767,-1239.96,0.00029315,2]
[311075409,1704895844776,-5148.99,0.00029315,2]
[311075410,1704895844786,-500.0,0.00029315,2]
[311075411,1704895844798,-500.0,0.00029315,2]
[311075412,1704895844807,-500.0,0.00029315,2]
[311075413,1704895844817,-500.0,0.00029315,2]
[311075414,1704895844826,-500.0,0.00029315,2]
[311075415,1704895844835,-500.0,0.00029315,2]
[311075416,1704895844844,-781.03,0.00029315,2]
[311075417,1704895844853,-3559.94,0.00029315,2]
[311075418,1704895844862,-500.0,0.00029315,2]
[311075419,1704895844963,-1208.23,0.00029315,2]
[311075420,1704895844973,-703.34,0.00029315,2]
[311075421,1704895844984,-1751.28,0.00029315,2]
[311075422,1704895844993,-500.0,0.00029589,2]
[311075423,1704895845002,-500.0,0.00029589,2]
[311075424,1704895845012,-442.14,0.00029589,2]
[311075425,1704895845021,-500.0,0.00029589,2]
[311075426,1704895845031,-500.0,0.00029589,2]
[311075427,1704895845041,-597.76,0.00029589,2]
[311075428,1704895845051,-500.0,0.00029589,2]
[311075429,1704895845060,-633.29,0.00029589,2]
[311075430,1704895845070,-9411.07,0.00029589,2]
[311075431,1704895845079,-500.0,0.00029589,2]
[311075432,1704895845088,-500.0,0.00029589,2]
[311075433,1704895845100,-1184.78,0.00029589,2]
[311075434,1704895845110,-500.0,0.00029589,2]
[311075435,1704895845119,-602.54,0.00029589,2]
[311075436,1704895845128,-500.0,0.00029589,2]
[311075437,1704895845138,-500.0,0.00029589,2]
[311075438,1704895845149,-500.0,0.00029589,2]
[311075439,1704895845158,-1239.96,0.00029589,2]
[311075440,1704895845168,-5148.99,0.00029589,2]
[311075441,1704895845177,-500.0,0.00029589,2]
[311075442,1704895845186,-500.0,0.00029589,2]
[311075443,1704895845195,-500.0,0.00029589,2]
[311075444,1704895845204,-500.0,0.00029589,2]
[311075445,1704895845214,-500.0,0.00029589,2]
[311075446,1704895845223,-500.0,0.00029589,2]
[311075447,1704895845234,-781.03,0.00029589,2]
[311075448,1704895845243,-3559.94,0.00029589,2]
[311075449,1704895845252,-500.0,0.00029589,2]
[311075450,1704895845262,-1208.23,0.00029589,2]
[311075451,1704895845271,-703.34,0.00029589,2]
[311075452,1704895845282,-1751.28,0.00029589,2]
[311075453,1704895845292,-154.87609912,0.00029664,2]
[311075454,1704895845301,-1821.85168105,0.00029664,2]
[311075455,1704895845310,-619.44144137,0.00029664,2]
[311075456,1704895845319,-763.40324942,0.00029664,2]
[311075457,1704895845329,-305.01426273,0.00029664,2]
[311075458,1704895845344,-212.72902683,0.00029763,2]
[311075459,1704895845353,-787.43,0.00029788,2]
[311075460,1704895845361,-787.43,0.00029788,2]
[311075461,1704895845371,-787.43,0.00029788,2]
[311075462,1704895845381,-787.43,0.00029788,2]
[311075463,1704895845391,-787.43,0.00029788,2]
[311075464,1704895845400,-787.43,0.00029788,2]
[311075465,1704895845409,-787.43,0.00029788,2]
[311075466,1704895845420,-787.43,0.00029788,2]
[311075467,1704895845430,-787.43,0.00029788,2]
[311075468,1704895845439,-229434.7142307,0.0002979,7]
[311075469,1704895845449,-500.0,0.00029863,2]
[311075470,1704895845458,-500.0,0.00029863,2]
[311075471,1704895845467,-500.0,0.00029863,2]
[311075472,1704895845476,-500.0,0.00029863,2]
[311075473,1704895845488,-597.76,0.00029863,2]
[311075474,1704895845498,-633.29,0.00029863,2]
[311075475,1704895845508,-9411.07,0.00029863,2]
[311075476,1704895845517,-500.0,0.00029863,2]
[311075477,1704895845526,-500.0,0.00029863,2]
[311075478,1704895845535,-1184.78,0.00029863,2]
[311075479,1704895845545,-500.0,0.00029863,2]
[311075480,1704895845554,-602.54,0.00029863,2]
[311075481,1704895845565,-500.0,0.00029863,2]
[311075482,1704895845574,-500.0,0.00029863,2]